Cogmind - Beta 10.1 @@@ ROGUE MODE // 2020.09.26 @ 17:42:13 Player: 277 Result: Destroyed by as-94804 with Assembled Blade Performance ------------- Evolutions (0) 0 Regions Visited (3) 600 Robots Destroyed (19) 95 Value Destroyed (603) 603 Prototype IDs (1) 20 Alien Tech Used (0) 0 Bonus (-96) -96 TOTAL SCORE: 1222 Bonus ------- Follower Combat Kills 7 Friendly Fire -103 Cogmind --------- Core Integrity 0/250 Matter 22/300 Energy 100/100 System Corruption 0% Temperature Cool (0) Movement Core (600) Ox11 Location -10/Exiles Parts ------- > --- POWER (1) -------- (None) > --- PROPULSION (2) --- (None) > --- UTILITY (2) ------ High-capacity Storage Unit > --- WEAPON (2) ------- Hammer > --- INVENTORY (12) --- Aluminum Leg High-capacity Storage Unit High-capacity Battery (400) Light Armor Plating Assault Rifle Mining Laser Peak State ------------ > --- POWER ------------ Light Nuclear Core > --- PROPULSION ------- Aluminum Leg Aluminum Leg > --- UTILITY ---------- Small Storage Unit Experimental Sensor Array > --- WEAPON ----------- Grenade Launcher Grenade Launcher > --- INVENTORY -------- Light Armor Plating Assault Rifle Rocket Launcher Mining Laser Hammer [Rating: 14] Favorites ----------- Power Ion Engine Engine Ion Engine Power Core Light Nuclear Core Propulsion Aluminum Leg Leg Aluminum Leg Utility Small Storage Unit Device Experimental Sensor Array Storage Small Storage Unit Weapon Grenade Launcher Ballistic Gun Assault Rifle Launcher Grenade Launcher Impact Weapon Hammer Build | -11 -10 -10 -10 ------- Run | Scr Mat Min Exi Slots Evolved . | . . . . Power . | . . . . Propulsion . | . . . . Utility . | . . . . Weapon . | . . . . Parts Attached 18 | 6 4 5 3 Power 2 | 1 . 1 . Engine 1 | 1 . . . Core 1 | . . 1 . Reactor . | . . . . Propulsion 4 | 2 . 2 . Treads . | . . . . Leg 4 | 2 . 2 . Wheel . | . . . . Hover . | . . . . Flight . | . . . . Utility 4 | 1 1 1 1 Device 2 | . 1 1 . Storage 2 | 1 . . 1 Processor . | . . . . Hackware . | . . . . Protection . | . . . . Artifact . | . . . . Weapon 8 | 2 3 1 2 Energy Gun . | . . . . Energy Cannon . | . . . . Ballistic Gun 3 | 2 1 . . Ballistic Cannon . | . . . . Launcher 4 | . 2 1 1 Special Weapon . | . . . . Impact Weapon 1 | . . . 1 Slashing Weapon . | . . . . Piercing Weapon . | . . . . Special Melee Weapon . | . . . . Unidentified Prototypes 1 | . . 1 . Parts Lost 8 | . . 2 6 Power 2 | . . 1 1 Propulsion 2 | . . . 2 Utility 1 | . . . 1 Weapon 3 | . . 1 2 Highest Loss Streak 6 | . . 1 6 Average Slot Usage (%) 95 | . 99 95 85 Engine 7 | . 14 4 . Core 6 | . . 9 14 Leg 27 | . 28 28 27 Device 13 | . 13 14 14 Storage 14 | . 14 14 14 Ballistic Gun 7 | . 15 4 . Launcher 16 | . 12 20 13 Naked Turns . | . . . . Heaviest Build 44 | 12 15 16 44 Greatest Support 20 | 20 20 20 20 Greatest Overweight (x) 4 | 1 . . 4 Average Overweight (x) . | . . . . Largest Inventory Capacity 12 | 6 6 6 12 Average Capacity 6 | 5 6 6 7 Most Carried 8 | 1 6 6 8 Average Carried 5 | . 4 5 6 Final Capacity 12 | 6 6 6 12 Final Carried 6 | 1 6 6 6 Class Distribution -------------------- 100% | Mutant Dominant Class ---------------- Mutant | -10/Materials Mutant | -10/Mines Mutant | -10/Exiles Resources | -11 -10 -10 -10 ----------- Run | Scr Mat Min Exi Matter Collected 538 | 208 245 85 . Remotely . | . . . . Salvage Created 313 | 16 181 116 . Parts 29 | 3 11 15 . Haulers Intercepted . | . . . . Recyclers Shooed 1 | 1 . . . Parts Field Recycled . | . . . . Retrieved Matter . | . . . . Parts Self-Destructed . | . . . . Prevented . | . . . . Kills | -11 -10 -10 -10 ------- Run | Scr Mat Min Exi Combat Hostiles Destroyed 12 | . 7 5 . Guns 1 | . 1 . . AOE 11 | . 6 5 . Classes Destroyed 6 | 1 5 . . Worker 2 | . 1 1 . Tunneler 2 | 1 . 1 . Mechanic 1 | . 1 . . Watcher 2 | . 2 . . Swarmer 3 | . 1 2 . Grunt 9 | . 6 3 . Best Kill Streak 7 | 1 7 3 . Combat Bots Only 3 | . 3 3 . Max Kills in Single Turn 2 | 1 2 2 . Gunslinging . | . . . . Exploded 2 | . 2 2 . Melee . | . . . . Uniques/NPCs Destroyed . | . . . . Combat | -11 -10 -10 -10 -------- Run | Scr Mat Min Exi Damage Taken 907 | . 198 154 555 Core 261 | . 11 9 241 Absorbed by Shields . | . . . . Core Remaining (%) 100 | 100 . . . Volleys Fired 53 | 8 33 12 . Largest 2 | 2 2 2 . Hottest 60 | 40 40 60 . Shots Fired 70 | 16 39 15 . Gun 28 | 16 12 . . Cannon . | . . . . Launcher 42 | . 27 15 . Special . | . . . . Kinetic 28 | 16 12 . . Thermal . | . . . . Explosive 42 | . 27 15 . Electromagnetic . | . . . . Robot Hit Streak 11 | 5 10 11 . Robot Miss Streak 2 | 1 1 2 . Penetration Max . | . . . . Secondary Targets . | . . . . Shots Hit Robots 32 | 13 15 3 1 Core Hits 34 | 3 16 15 . Critical Hits . | . . . . Critical Kills . | . . . . Critical Parts Destroyed . | . . . . Melee Attacks 3 | . . . 3 Impact 3 | . . . 3 Slashing . | . . . . Piercing . | . . . . Sneak Attacks . | . . . . Combat Hostiles . | . . . . Follow-up Attacks . | . . . . Damage Inflicted 1459 | 135 774 487 63 Guns 240 | 135 105 . . Cannons . | . . . . Explosions 1156 | . 669 487 . Melee 63 | . . . 63 Ramming . | . . . . Kinetic 240 | 135 105 . . Thermal . | . . . . Explosive 1156 | . 669 487 . Electromagnetic . | . . . . Impact 63 | . . . 63 Slashing . | . . . . Piercing . | . . . . Highest Corruption . | . . . . Average Corruption . | . . . . Corruption Purged . | . . . . Overload Shots . | . . . . Overflow Damage 18 | . 9 9 . Projectiles . | . . . . Explosions 18 | . 9 9 . Melee . | . . . . Knockbacks . | . . . . Impact . | . . . . Kinetic . | . . . . Secondary . | . . . . Self-Inflicted Damage 113 | . 59 54 . Shots 5 | . 3 2 . Rammed . | . . . . Targets Rammed . | . . . . Kicked . | . . . . Crushed . | . . . . Highest Temperature 20 | . 12 20 3 Average Temperature 7 | . 6 10 3 Received Heat Transfer 189 | . 78 51 60 Siege Activations . | . . . . Robots Corrupted . | . . . . Combat Hostiles . | . . . . Parts Fried . | . . . . Impact Corruptions . | . . . . Robots Melted . | . . . . Combat Hostiles . | . . . . Parts Melted . | . . . . Heat Transferred . | . . . . Parts Sabotaged . | . . . . Parts Stolen . | . . . . Parts Stripped . | . . . . Power Chain Reactions . | . . . . Missiles Intercepted . | . . . . Alert | -11 -10 -10 -10 ------- Run | Scr Mat Min Exi Peak Influence 375 | 5 375 204 . Initial 99 | . 3 99 . Average 110 | 3 116 119 . Maximum Alert Level 1 | . 1 1 . Low Security (%) 78 | 100 80 73 . Level 1 21 | . 19 26 . Level 2 . | . . . . Level 3 . | . . . . Level 4 . | . . . . Level 5 . | . . . . High Security . | . . . . Max Security . | . . . . Squads Dispatched 3 | . 3 . . Investigation 2 | . 2 . . Extermination . | . . . . Reinforcement 1 | . 1 . . Assault . | . . . . Garrison . | . . . . Intercept . | . . . . Construction Impeded . | . . . . Haulers Reinforced . | . . . . Stealth | -11 -10 -10 -10 --------- Run | Scr Mat Min Exi Distress Signals . | . . . . Communications Jammed . | . . . . Distress Signals . | . . . . Times Spotted 25 | . 11 6 8 Peak Tracking Total 13 | . 3 3 13 Tactical Retreats 1 | . . . 1 Traps | -11 -10 -10 -10 ------- Run | Scr Mat Min Exi Traps Triggered . | . . . . Indirectly . | . . . . Trap Hack Attempts . | . . . . Triggered . | . . . . Disarmed . | . . . . Reprogrammed . | . . . . Reused . | . . . . Traps Extracted . | . . . . Installed . | . . . . Triggered . | . . . . Machines | -11 -10 -10 -10 ---------- Run | Scr Mat Min Exi Machines Disabled 19 | . 14 5 . Max in Single Turn 2 | . 2 2 . Machines Sabotaged . | . . . . Garrisons Compromised . | . . . . Overloaded Fab Kills . | . . . . Fab Network Shutdowns . | . . . . Hacking | -11 -10 -10 -10 --------- Run | Scr Mat Min Exi Machines Accessed 5 | . 5 . . Terminals 5 | . 5 . . Fabricators . | . . . . Repair Stations . | . . . . Recycling Units . | . . . . Scanalyzers . | . . . . Garrison Access . | . . . . Total Hacks 14 | . 14 . . Successful 8 | . 8 . . Failed 6 | . 6 . . Catastrophic . | . . . . Database Lockouts . | . . . . Manual 12 | . 12 . . Terminals 14 | . 14 . . Fabricators . | . . . . Repair Stations . | . . . . Recycling Units . | . . . . Scanalyzers . | . . . . Garrison Access . | . . . . Terminal Hacks 4 | . 4 . . Terminal Index 1 | . 1 . . Locate Traps 1 | . 1 . . Recall Investigation 1 | . 1 . . Zone Layout 1 | . 1 . . Fabricator Hacks . | . . . . Repair Station Hacks . | . . . . Recycling Unit Hacks . | . . . . Scanalyzer . | . . . . Garrison Access Hacks . | . . . . Unauthorized Hacks 4 | . 4 . . Terminals 4 | . 4 . . Track 4 | . 4 . . Fabricators . | . . . . Repair Stations . | . . . . Recycling Units . | . . . . Scanalyzers . | . . . . Garrison Access . | . . . . Data Cores Recovered . | . . . . Used . | . . . . Hacking Detections 4 | . 4 . . Full Trace Events . | . . . . Feedback Events . | . . . . Feedback Blocked . | . . . . Robot Schematics Acquired . | . . . . Robots Built . | . . . . Matter . | . . . . Time . | . . . . Total Robot Build Rating . | . . . . Part Schematics Acquired . | . . . . Parts Built . | . . . . Matter . | . . . . Time . | . . . . Total Part Build Rating . | . . . . Parts Repaired . | . . . . Time . | . . . . Parts Recycled . | . . . . Recycled Matter . | . . . . Retrieved Matter . | . . . . Retrieved Components . | . . . . Parts Scanalyzed . | . . . . Part Schematics Acquired . | . . . . Parts Damaged . | . . . . Bothacking | -11 -10 -10 -10 ------------ Run | Scr Mat Min Exi Used RIF Installer . | . . . . Robots Hacked . | . . . . Non-combat . | . . . . Combat . | . . . . Robot Hacks Applied . | . . . . Relay Couplers Released . | . . . . Robots Rewired . | . . . . Allies Hacked . | . . . . Hacks Repelled . | . . . . Allies | -11 -10 -10 -10 -------- Run | Scr Mat Min Exi Total Allies 3 | . . 3 . Largest Group 3 | . . 3 3 Highest-Rated Group 73 | . . 73 73 Highest-Rated Ally 31 | . . 31 31 Total Orders . | . . . . Ally Attacks 4 | . . 4 . Total Damage 43 | . . 43 . Kills 1 | . . 1 . Allies Corrupted . | . . . . Allies Melted . | . . . . Intel | -11 -10 -10 -10 ------- Run | Scr Mat Min Exi Robot Analysis Total . | . . . . Derelict Logs Recovered 2 | . . 2 . Drone Launches . | . . . . Drone Recoveries . | . . . . Exploration | -11 -10 -10 -10 ------------- Run | Scr Mat Min Exi Turns Passed 1376 | 85 444 677 170 Spaces Moved 964 | 45 286 514 119 Core 6 | 6 . . . Treads . | . . . . Legs 958 | 39 286 514 119 Wheels . | . . . . Hover . | . . . . Flight . | . . . . Fastest Speed 50 | 50 120 120 120 Average Speed 121 | 114 120 120 132 Slowest Speed 240 | 120 120 120 240 Overloaded Moves . | . . . . Propulsion Burnouts . | . . . . Robots Hopped . | . . . . Cave-ins Triggered . | . . . . Exploration Rate (%) 52 | 5 73 99 33 Regions Visited 3 Branch Regions 2 Pre-discovered Areas 1 | . . 1 . Known Exits Taken . | . . . . Unknown Exits Taken 3 | 1 1 1 . Scrap Searched 1 | . . 1 . Spaces Dug . | . . . . Terrain Destroyed 352 | . 264 88 . Melee . | . . . . Projectile . | . . . . AOE 352 | . 264 88 . Terrain Rammed . | . . . . Walls Destroyed . | . . . . Machines Disabled . | . . . . Actions | -11 -10 -10 -10 --------- Run | Scr Mat Min Exi Total 1096 | 61 347 559 129 Wait 48 | 2 20 25 1 Move 961 | 44 285 513 119 Hop . | . . . . Pick Up 9 | 1 5 1 2 Fast Attach 8 | 6 1 1 . Attach 3 | . . 1 2 Detach . | . . . . Swap 7 | . 3 3 1 Drop 4 | . . 3 1 Fire 53 | 8 33 12 . Melee 3 | . . . 3 Ram . | . . . . Kick . | . . . . Crush . | . . . . Escape Stasis . | . . . . Rewire . | . . . . Trap . | . . . . Miscellaneous . | . . . . Route ------- -11/Scrapyard -10/Materials (discovered 5 exits: [*Mat x3] / [*Min x2]) -10/Mines (discovered 3 exits: [*Mat x2] / [*Exi]) -10/Exiles (discovered 1 exit: [*Min]) History --------- Turn | Location | Event 67 | -11/Scrapyard | Discovered new exit (range 15) 86 | -11/Scrapyard | Entered Materials 250 | -10/Materials | Discovered new exit (range 10) 309 | -10/Materials | Build established: Mutant 322 | -10/Materials | Discovered new exit (range 10) 347 | -10/Materials | Discovered new exit (range 16) 390 | -10/Materials | Discovered new exit (range 5) 498 | -10/Materials | Discovered new exit (range 8) 530 | -10/Materials | Entered Mines 544 | -10/Mines | Found a damaged Exp. Sensor Array with a note attached 547 | -10/Mines | Found Prototype Device 547 | -10/Mines | Identified Exp. Sensor Array 585 | -10/Mines | Learned 4 Materials zone layouts 621 | -10/Mines | Received a Rocket Launcher from a helpful Derelict 756 | -10/Mines | Escorted by a lone wolf Derelict 888 | -10/Mines | Deemed a non-threat by the Exiles lab entrance 888 | -10/Mines | Discovered new exit (range 5) 944 | -10/Mines | Discovered new exit (range 13) 998 | -10/Mines | Discovered new exit (range 4) 1065 | -10/Mines | Learned location of Zion (-7) 1207 | -10/Mines | Entered Exiles 1207 | -10/Exiles | Accompanied by 3 allies 1224 | -10/Exiles | Discovered new exit (range 15) 1237 | -10/Exiles | Led the pair of lost Derelicts to a safe place 1259 | -10/Exiles | Met 8R-AWN 1279 | -10/Exiles | Met EX-HEX 1359 | -10/Exiles | Attacked by the Exiles 1375 | -10/Exiles | Core integrity fell below 50% 1377 | -10/Exiles | Core integrity fell below 20% 1377 | -10/Exiles | Destroyed by as-94804 with Assembled Blade Last Messages --------------- guys. Go see BIN. I can't imagine you'll want to stay in our boring little cave for long, and we could use some help with the project in the back. 01324_ Dropped Sml. Storage Unit. 01327_ Acquired Hcp. Storage Unit. 01332_ Extracted 4 energy. 01334_ Acquired Hcp. Battery. 01358_ Sneak attack on A-02 Transporter. 01359_ EXILES: Hostile robot within lab perimeter. Defensive protocols time, folks! 01364_ Aluminum Leg destroyed. 01364_ Grenade Launcher destroyed. 01364_ Knocked back. 01371_ Machine disabled. 01373_ Aluminum Leg destroyed. 01373_ Rocket Launcher destroyed. 01374_ EX-BIN: "I just want to science!" 01374_ Lgt. Nuclear Core destroyed. 01375_ Exp. Sensor Array destroyed. 01376_ Machine disabled. Map ----- +----------------------------------------------------+ | ?????????????????????????????????????????????????? | | ?????????????????????????????????????????????????? | | ?????????????????????????????????????????????????? | | ?????????????????????????????????????????????????? | | ?????????????????????????????????????????????????? | | ?????????????????????????????????????????????????? | | ?????????????????????????????????????????????????? | | ?????????????????????????????????????????????????? | | ???????????????????????????????????????#???#?????? | | ?????????????????????????????????#####""?""""""??? | | ??????????????????????????????? " """ """"#? | | ????????????????????????????? "" " # | | ????????????????????????????? " """# | | ???????????????????????????? " "# | | ????????????????????????????? " "# | | ?????????????????????????????? "" | | ??????????????????????????????? " | | ???????????????????????????????? | | ???????? ??????????????????????""" | | ???????? ???????????????????#""" | | ??????? ????????????????#"""" | | ??????? ??????????????##"" | | ?????? #??#####??####"""" | | ?????? ##aaa####""" | | ?????? a """ | | ?????? @a | | ??????" aaa a | | ??????? c " | | ??????? c "" """ | | ???????? ""## ##""" " " ""#" | | ???????? "#### ######""" """##"""""" | | ???????? """"##??# #????###""""######### | | ????????? """#??## ####???######???????? | | ????????? ""#???#! " #????????????????? | | ?????????? ""?#????#" !#????????????????? | | ?????????? ? ??????#" "#????????????????? | | ???????????? ?????????#!!"" "#????????????????? | | ?????????????? ??????????########????????????????? | | ?????????????????????????????????????????????????? | | ?????????????????????????????????????????????????? | | ?????????????????????????????????????????????????? | | ?????????????????????????????????????????????????? | | ?????????????????????????????????????????????????? | | ?????????????????????????????????????????????????? | | ?????????????????????????????????????????????????? | | ?????????????????????????????????????????????????? | | ?????????????????????????????????????????????????? | | ?????????????????????????????????????????????????? | | ?????????????????????????????????????????????????? | | ?????????????????????????????????????????????????? | +----------------------------------------------------+ Best States ------------- Heat Dissipation 25 Energy Generation 14 Energy Capacity 250 Matter Stores 294 Matter Capacity 300 Sight Range 16 Robot Scan Range 30 Terrain Scan Density 10 Evasion (%) 40 Item Schematics ----------------- None Robot Schematics ------------------ None Fabricated ------------ Nothing Alien Tech Used ----------------- None Achievements -------------- None Challenges ------------ None Game ------ Seed DeepAntigravInjector Manual? 0 Play Time 00:16:20 Cumulative 214.3 hours Start 2020.09.26 @ 17:27:44 End 2020.09.26 @ 17:42:13 Sessions 1 Manual Loads 0 Difficulty Rogue Special Mode None Game No. 156 Rogue 156 Adventurer 0 Explorer 0 Win Type - Total 1 Types 1/0/0/0/0/0/0/0/0 Lore% 54 Gallery% 69 Achievement% 48 Wizard Run 0 Options --------- ASCII 0 Keyboard 0 Movement Numpad Keybinds 0 Fullscreen 1 Font 18/SmallcapsGlow Map View 76x50 Tactical HUD 1 Map Filters NONE Filters NONE Steam 1 RUN: cbf5167e-3648-41b0-a3da-f533b7261328